bitfinex/quotes_SOLUSD_20230102
["timestamp","ask_amount","ask_price","bid_price","bid_amount"]
[1672619114771,75.58,9.9387,9.9306,20.0]
[1672619115097,30.0,9.9386,9.9306,20.0]
[1672619115300,75.58,9.9385,9.9306,20.0]
[1672619115513,75.58,9.9389,9.9307,30.0]
[1672619115719,145.65977392,9.9386,9.9308,20.0]
[1672619115929,30.0,9.9384,9.9308,20.0]
[1672619116161,75.58,9.9383,9.9308,20.0]
[1672619116367,30.0,9.9383,9.9309,30.0]
[1672619116551,75.58,9.9382,9.931,20.0]
[1672619117195,30.0,9.9381,9.931,20.0]
[1672619117410,30.0,9.9381,9.9305,30.0]
[1672619117411,30.0,9.9381,9.9306,20.0]
[1672619117824,75.58,9.9382,9.9306,20.0]
[1672619118029,302.2,9.9497,9.9306,20.0]
[1672619118030,145.65977392,9.9381,9.9306,20.0]
[1672619118355,145.65977392,9.9381,9.9305,30.0]
[1672619118563,75.58,9.938,9.9306,20.0]
[1672619118777,75.58,9.938,9.9307,30.0]
[1672619119183,75.58,9.9391,9.9308,20.0]
[1672619119399,30.0,9.939,9.9308,20.0]
[1672619119625,75.58,9.9389,9.9308,20.0]
[1672619119939,30.0,9.9394,9.9309,30.0]
[1672619120156,75.57,9.9393,9.931,20.0]
[1672619120366,30.0,9.9392,9.931,20.0]
[1672619120583,30.0,9.939,9.931,20.0]
[1672619120788,75.58,9.9389,9.931,20.0]
[1672619121408,75.58,9.9391,9.931,20.0]
[1672619121736,30.0,9.9388,9.931,20.0]
[1672619122052,30.0,9.9386,9.931,20.0]
[1672619122245,75.58,9.9385,9.9308,20.0]
[1672619122456,30.0,9.9387,9.9306,20.0]
[1672619122788,175.65977392,9.9385,9.9306,20.0]
[1672619123104,30.0,9.9383,9.9306,20.0]
[1672619123299,30.0,9.9381,9.9304,20.0]
[1672619123513,75.58,9.938,9.9304,20.0]
[1672619123714,30.0,9.9379,9.9304,20.0]
[1672619123922,75.59,9.9378,9.9304,20.0]
[1672619124259,175.65977392,9.9378,9.9304,20.0]
[1672619124787,30.0,9.9385,9.9305,30.0]
[1672619124996,30.0,9.9383,9.9306,20.0]
[1672619125312,75.58,9.9382,9.9306,20.0]
[1672619126046,75.58,9.9384,9.9306,20.0]
[1672619126565,30.0,9.9383,9.9306,20.0]
[1672619126777,30.0,9.9381,9.9306,20.0]
[1672619127089,75.58,9.938,9.9306,20.0]
[1672619127303,30.0,9.9383,9.9305,30.0]
[1672619127521,30.0,9.9383,9.9306,20.0]
[1672619128344,30.0,9.9383,9.9304,20.0]
[1672619128675,30.0,9.9381,9.9304,20.0]
[1672619128983,30.0,9.9379,9.9304,20.0]
[1672619130349,29.5,9.9379,9.9304,20.0]
[1672619130753,59.08859396,9.9379,9.9304,20.0]
[1672619130964,175.15977392,9.9379,9.9304,20.0]
[1672619133192,13.29849068,9.9378,9.9304,20.0]
[1672619133403,30.0,9.9377,9.9304,20.0]
[1672619133926,175.65977392,9.9377,9.9304,20.0]
[1672619134133,30.0,9.9377,9.9304,20.0]
[1672619136863,175.65977392,9.9377,9.9304,20.0]
[1672619137081,13.29618898,9.9376,9.9304,20.0]
[1672619137487,30.0,9.9375,9.9304,20.0]
[1672619137904,175.65977392,9.9375,9.9304,20.0]
[1672619139813,30.0,9.9375,9.9304,20.0]
[1672619141176,13.29388719,9.9374,9.9304,20.0]
[1672619142760,30.0,9.9372,9.9304,20.0]
[1672619142964,30.0,9.937,9.9304,20.0]
[1672619143486,175.65977392,9.937,9.9304,20.0]
[1672619144937,13.2881323,9.9369,9.9304,20.0]
[1672619148114,12.7881323,9.9369,9.9304,20.0]
[1672619148835,30.0,9.9368,9.9304,20.0]
[1672619149576,175.65977392,9.9368,9.9304,20.0]
[1672619150111,13.24416352,9.9367,9.9304,20.0]
[1672619150725,30.0,9.9366,9.9304,20.0]
[1672619151169,175.65977392,9.9366,9.9304,20.0]
[1672619151890,30.0,9.9366,9.9304,20.0]
[1672619153257,13.24416352,9.9367,9.9304,20.0]
[1672619154313,13.24416352,9.9367,9.9304,83.91158083]
[1672619154719,42.83275748,9.9367,9.9304,83.91158083]
[1672619154935,158.90393744,9.9367,9.9304,83.91158083]
[1672619157572,13.24416352,9.9367,9.9304,83.91158083]
[1672619159036,30.0,9.9372,9.9304,83.91158083]
[1672619160079,13.24876766,9.9371,9.9304,83.91158083]
[1672619161128,30.0,9.937,9.9304,83.91158083]
[1672619161559,175.65977392,9.937,9.9304,83.91158083]
[1672619163350,13.24646563,9.9369,9.9304,83.91158083]
[1672619167040,30.0,9.9368,9.9304,83.91158083]
[1672619167659,175.65977392,9.9368,9.9304,83.91158083]
[1672619168080,13.24416352,9.9367,9.9304,83.91158083]
[1672619168749,30.0,9.9366,9.9304,83.91158083]
[1672619169571,175.65977392,9.9366,9.9304,20.0]
[1672619169785,175.65977392,9.9366,9.9305,20.0]
[1672619169989,175.65977392,9.9366,9.9302,20.0]
[1672619170200,30.0,9.9366,9.9302,20.0]
[1672619172394,13.24186131,9.9365,9.9302,20.0]
[1672619173267,30.0,9.9364,9.9302,20.0]
[1672619174006,175.65977392,9.9364,9.9302,20.0]
[1672619175586,251.25977392,9.9364,9.9273,7.369]
[1672619175772,30.0,9.9362,9.9223,30.0]
[1672619175979,75.6,9.9361,9.9236,65.48910849]
[1672619176192,30.0,9.936,9.9237,7.372]
[1672619176417,30.0,9.9358,9.9237,7.372]
[1672619176626,75.6,9.9357,9.9237,72.86110849]
[1672619176824,30.0,9.9356,9.9238,30.0]
[1672619177035,30.0,9.9354,9.9239,7.372]
[1672619177360,30.0,9.9352,9.9239,7.372]
[1672619177571,75.61,9.9351,9.924,30.0]
[1672619177797,30.0,9.935,9.9241,7.372]
[1672619178101,30.0,9.9348,9.9241,132.44310627]
[1672619178321,30.0,9.9346,9.9241,132.44310627]
[1672619178501,30.0,9.9344,9.9242,65.48910849]
[1672619178719,75.61,9.9343,9.9243,7.372]
[1672619178927,30.0,9.9342,9.9243,7.372]
[1672619179139,30.0,9.934,9.9243,7.372]
[1672619179361,75.61,9.9339,9.9243,7.372]
[1672619179689,30.0,9.9338,9.9243,7.372]
[1672619179866,30.0,9.9336,9.9243,7.372]
[1672619180082,30.0,9.9334,9.9243,7.372]
[1672619180296,75.62,9.9333,9.9243,7.372]
[1672619180507,30.0,9.9332,9.9243,7.372]
[1672619180938,30.0,9.933,9.9243,7.372]
[1672619181554,30.0,9.9328,9.9243,7.372]
[1672619182196,30.0,9.9326,9.9243,7.372]
[1672619182941,30.0,9.9324,9.9243,7.372]
[1672619183662,30.0,9.9322,9.9243,7.372]
[1672619184101,22.5175,9.9321,9.9243,7.372]
[1672619184505,30.0,9.932,9.9243,7.372]
[1672619184715,52.5175,9.932,9.9243,7.372]
[1672619185352,30.0,9.9318,9.9243,7.372]
[1672619185573,30.0,9.9316,9.9242,74.21910849]
[1672619185784,30.0,9.9314,9.9242,65.48910849]
[1672619185996,75.63,9.9313,9.9242,65.48910849]
[1672619186514,30.0,9.9312,9.9242,65.48910849]
[1672619186732,75.64,9.9311,9.9242,65.48910849]
[1672619187154,30.0,9.931,9.9242,65.48910849]
[1672619187365,52.9066,9.931,9.9242,65.48910849]
[1672619187678,22.9066,9.931,9.9242,65.48910849]
[1672619187875,22.9066,9.9309,9.9242,65.48910849]
[1672619188087,22.9066,9.9308,9.9242,65.48910849]
[1672619188937,22.9066,9.9307,9.9242,65.48910849]
[1672619189355,24.6473,9.9306,9.9243,30.0]
[1672619190301,30.0,9.9305,9.9234,60.41343081]
[1672619190505,24.6473,9.9306,9.9234,60.41343081]
[1672619190706,24.6473,9.9306,9.922,30.0]
[1672619190913,13.17736176,9.9309,9.9222,30.0]
[1672619190914,24.6473,9.9305,9.9222,30.0]
[1672619191128,24.6473,9.9305,9.9223,8.732]
[1672619191348,24.6473,9.9305,9.9224,20.0]
[1672619191558,24.6473,9.9304,9.9225,8.732]
[1672619191772,24.6473,9.9304,9.9226,50.0]
[1672619191983,24.6473,9.9304,9.9227,8.732]
[1672619192194,37.81889934,9.9304,9.9228,20.0]
[1672619192397,37.81889934,9.9304,9.9229,8.732]
[1672619192606,37.81889934,9.9304,9.923,30.0]
[1672619192819,24.571,9.9303,9.923,30.0]
[1672619193035,24.571,9.9303,9.9232,30.0]
[1672619193777,30.0,9.9302,9.9228,20.0]
[1672619193969,30.0,9.93,9.9229,9.55]
[1672619194174,30.0,9.93,9.9228,20.0]
[1672619194387,30.0,9.93,9.9218,20.0]
[1672619194616,30.0,9.93,9.9219,9.551]
[1672619194811,30.0,9.93,9.922,20.0]
[1672619195015,30.0,9.93,9.9221,9.551]
[1672619195221,30.0,9.93,9.9222,20.0]
[1672619196301,13.16583633,9.9299,9.9222,20.0]
[1672619199332,13.16583633,9.9299,9.9223,30.0]
[1672619199870,13.16583633,9.9299,9.9225,30.0]
[1672619200079,24.571,9.9303,9.9227,30.0]
[1672619200290,24.571,9.9303,9.9228,29.551]
[1672619200501,24.571,9.9303,9.9229,30.0]
[1672619200811,24.571,9.9303,9.923,9.551]
[1672619201007,88.8092942,9.9302,9.9227,30.0]
[1672619201217,88.8092942,9.9302,9.9228,20.0]
[1672619201546,30.0,9.9301,9.9228,20.0]
[1672619201750,30.0,9.9301,9.9226,20.0]
[1672619202372,30.0,9.9301,9.9223,20.0]
[1672619204073,13.16698898,9.93,9.9223,20.0]
[1672619204284,30.0,9.9299,9.9223,20.0]
[1672619206472,88.80698898,9.93,9.9223,20.0]
[1672619206688,13.16698898,9.93,9.9224,30.0]
[1672619206904,13.16698898,9.93,9.9225,20.0]
[1672619207325,13.16698898,9.93,9.9226,30.0]
[1672619207536,13.16698898,9.93,9.9227,20.0]
[1672619207738,13.16698898,9.93,9.9228,30.0]
[1672619211748,12.66698898,9.93,9.9228,30.0]
[1672619212474,12.66698898,9.93,9.9227,20.0]
[1672619212681,12.66698898,9.93,9.9229,59.58199778]
[1672619212891,12.66698898,9.93,9.923,30.0]
[1672619213857,12.66698898,9.93,9.9232,30.0]
[1672619226885,12.66698898,9.93,9.9231,59.58199778]
[1672619227097,12.66698898,9.93,9.9232,30.0]
[1672619239410,12.66698898,9.93,9.9231,59.58199778]
[1672619239830,12.66698898,9.93,9.9226,4.146]
[1672619240234,30.0,9.9299,9.9224,4.579]
[1672619241094,13.12301699,9.9298,9.9224,4.579]
[1672619242785,30.0,9.9297,9.9224,4.579]
[1672619243617,13.12301699,9.9298,9.9224,4.579]
[1672619244035,13.12301699,9.9298,9.9222,4.579]
[1672619245931,13.12301699,9.9298,9.9223,30.0]
[1672619246129,13.12301699,9.9298,9.9224,20.0]
[1672619248139,30.0,9.9297,9.9224,20.0]
[1672619248326,30.0,9.9297,9.9222,4.579]
[1672619249271,13.12071158,9.9296,9.9222,4.579]
[1672619249482,13.12071158,9.9296,9.9223,30.0]
[1672619249691,13.12071158,9.9296,9.9224,20.0]
[1672619250225,105.64,9.93,9.9224,20.0]
[1672619250640,105.64,9.93,9.9222,30.0]
[1672619250847,105.64,9.93,9.9223,20.0]
[1672619251928,105.64,9.93,9.9222,94.66177315]
[1672619252552,111.41,9.93,9.9222,20.0]
[1672619252762,111.41,9.93,9.9216,20.0]
[1672619253388,13.12416966,9.9299,9.9216,20.0]
[1672619253598,75.65,9.9298,9.9216,20.0]
[1672619253820,30.0,9.9297,9.9216,20.0]
[1672619254027,30.0,9.9295,9.9216,20.0]
[1672619254225,75.65,9.9294,9.9216,20.0]
[1672619254438,30.0,9.9293,9.9216,20.0]
[1672619254647,30.0,9.9291,9.9216,20.0]
[1672619254863,75.65,9.929,9.9216,20.0]
[1672619255084,30.0,9.9289,9.9216,20.0]
[1672619255290,75.65,9.9288,9.9208,20.0]
[1672619255510,30.0,9.9287,9.9208,20.0]
[1672619255818,75.66,9.9286,9.9208,20.0]
[1672619256025,30.0,9.9285,9.9208,20.0]
[1672619256222,75.66,9.9284,9.9208,20.0]
[1672619256562,30.0,9.9283,9.9208,20.0]
[1672619256867,30.0,9.9281,9.9208,20.0]
[1672619257080,30.0,9.9279,9.9208,20.0]
[1672619257288,75.66,9.9278,9.918,43.8641]
[1672619257493,30.0,9.9277,9.918,43.8641]
[1672619257704,75.66,9.9276,9.918,43.8641]
[1672619257901,30.0,9.9275,9.918,43.8641]
[1672619258113,75.66,9.9274,9.918,43.8641]
[1672619258341,30.0,9.9273,9.918,43.8641]
[1672619258658,75.67,9.9272,9.914,30.0]
[1672619258970,250.3892,9.9272,9.914,30.0]
[1672619259169,195.4182,9.9271,9.9135,15.80730786]
[1672619259372,95.67,9.927,9.9135,15.80730786]
[1672619259705,195.4182,9.9269,9.9135,15.80730786]
[1672619259917,30.0,9.9267,9.9135,15.80730786]
[1672619260115,30.0,9.9265,9.9135,15.80730786]
[1672619260443,75.67,9.9264,9.9135,15.80730786]
[1672619260639,30.0,9.9263,9.9135,15.80730786]
[1672619260849,75.67,9.9262,9.9126,30.0]
[1672619261059,30.0,9.9261,9.9128,30.0]
[1672619261260,30.0,9.9259,9.9128,30.0]
[1672619261476,75.68,9.9258,9.913,30.0]
[1672619261682,30.0,9.9257,9.913,30.0]
[1672619261898,30.0,9.9255,9.913,75.44617367]
[1672619262109,75.68,9.9254,9.9132,30.0]
[1672619262319,30.0,9.9253,9.9132,30.0]
[1672619262539,75.68,9.9252,9.9132,30.0]
[1672619262972,30.0,9.925,9.9132,30.0]
[1672619263174,75.68,9.9249,9.9132,30.0]
[1672619263390,30.0,9.9248,9.9132,30.0]
[1672619263595,75.68,9.9247,9.9132,30.0]
[1672619263901,75.68,9.9247,9.913,45.44617367]
[1672619264117,190.5585,9.9246,9.913,45.44617367]
[1672619264337,75.69,9.9245,9.913,45.44617367]
[1672619264642,30.0,9.9244,9.913,45.44617367]
[1672619264867,30.0,9.9242,9.913,45.44617367]
[1672619265063,75.69,9.9241,9.913,45.44617367]
[1672619265259,75.69,9.9241,9.9131,17.42]
[1672619265470,158.9359,9.924,9.913,45.44617367]
[1672619265807,75.69,9.9239,9.913,45.44617367]
[1672619266123,30.0,9.9238,9.913,45.44617367]
[1672619266309,30.0,9.9236,9.913,45.44617367]
[1672619266527,75.69,9.9235,9.913,45.44617367]
[1672619266735,30.0,9.9234,9.913,45.44617367]
[1672619266944,30.0,9.9232,9.913,45.44617367]
[1672619267155,75.7,9.9231,9.913,45.44617367]
[1672619267369,30.0,9.923,9.913,45.44617367]
[1672619267583,75.7,9.9229,9.913,45.44617367]
[1672619267785,236.811,9.9229,9.913,45.44617367]
[1672619267996,30.0,9.9228,9.913,45.44617367]
[1672619268219,75.7,9.9227,9.913,45.44617367]
[1672619268432,236.811,9.9227,9.913,45.44617367]
[1672619268621,30.0,9.9226,9.913,45.44617367]
[1672619268832,30.0,9.9224,9.913,45.44617367]
[1672619269043,75.7,9.9223,9.913,45.44617367]
[1672619269253,30.0,9.9222,9.913,45.44617367]
[1672619269477,75.7,9.9221,9.913,45.44617367]
[1672619269684,30.0,9.922,9.913,45.44617367]
[1672619269882,30.0,9.9218,9.913,45.44617367]
[1672619270093,75.71,9.9217,9.913,45.44617367]
[1672619270306,235.795,9.9217,9.913,45.44617367]
[1672619270520,30.0,9.9216,9.913,45.44617367]
[1672619270737,30.0,9.9214,9.913,45.44617367]
[1672619270943,30.0,9.9212,9.913,45.44617367]
[1672619271155,30.0,9.921,9.913,45.44617367]
[1672619271365,75.71,9.9209,9.913,45.44617367]
[1672619271578,98.8995,9.9209,9.913,45.44617367]
[1672619271791,30.0,9.9208,9.913,45.44617367]
[1672619272005,30.0,9.9206,9.913,45.44617367]
[1672619272216,75.72,9.9205,9.913,45.44617367]
[1672619272427,30.0,9.9206,9.913,45.44617367]
[1672619272831,23.6249,9.9206,9.913,45.44617367]
[1672619273041,23.6249,9.9206,9.9131,30.0]
[1672619273251,13.00732229,9.9205,9.913,45.44617367]
[1672619273695,13.00732229,9.9205,9.9131,45.80730786]
[1672619274010,13.00732229,9.9205,9.9132,110.49653581]
[1672619274198,13.00732229,9.9205,9.9132,126.30384367]
[1672619274409,13.00732229,9.9205,9.9133,126.30384367]
[1672619274836,13.00732229,9.9205,9.9134,69.48576393]
[1672619275255,13.00732229,9.9205,9.9135,53.67845607]
[1672619275473,30.0,9.9204,9.9135,53.67845607]
[1672619275674,13.00732229,9.9205,9.9135,53.67845607]
[1672619276427,13.00732229,9.9205,9.9137,30.0]
[1672619276830,13.00732229,9.9205,9.9139,30.0]
[1672619277247,13.00732229,9.9205,9.9141,30.0]
[1672619277772,13.00732229,9.9205,9.9143,30.0]
[1672619278193,13.00732229,9.9205,9.9145,30.0]
[1672619278635,13.00732229,9.9205,9.9147,30.0]
[1672619279033,13.00732229,9.9205,9.9148,53.67845607]
[1672619282709,30.0,9.9204,9.9148,53.67845607]
[1672619283036,75.72,9.9203,9.9148,53.67845607]
[1672619283228,30.0,9.9202,9.9148,53.67845607]
[1672619284292,13.00616743,9.9204,9.9148,53.67845607]
[1672619284504,105.72,9.9203,9.9148,53.67845607]
[1672619285147,118.72501255,9.9203,9.9148,53.67845607]
[1672619286389,118.72501255,9.9203,9.9104,30.0]
[1672619286593,118.72501255,9.9203,9.9119,73.67845607]
[1672619287343,118.72501255,9.9203,9.912,53.67845607]
[1672619287664,118.72501255,9.9203,9.9121,20.0]
[1672619287881,118.72501255,9.9203,9.9122,30.0]
[1672619288091,118.72501255,9.9203,9.9122,83.67845607]
[1672619288292,118.72501255,9.9203,9.9123,73.67845607]
[1672619288491,118.72501255,9.9203,9.9124,30.0]
[1672619288704,118.72501255,9.9203,9.9125,20.0]
[1672619288912,118.72501255,9.9203,9.9125,73.67845607]
[1672619289253,88.72501255,9.9203,9.9126,83.67845607]
[1672619289562,88.72501255,9.9203,9.9128,30.0]
[1672619289758,13.00501255,9.9203,9.913,30.0]
[1672619290186,13.00501255,9.9203,9.9131,69.48576393]
[1672619290397,13.00501255,9.9203,9.9132,30.0]
[1672619290616,13.00501255,9.9203,9.9132,83.67845607]
[1672619290830,13.00501255,9.9203,9.9133,53.67845607]
[1672619291864,30.0,9.9202,9.9133,53.67845607]
[1672619292279,43.00385765,9.9202,9.9133,53.67845607]
[1672619293242,13.00385765,9.9202,9.9133,53.67845607]
[1672619293449,13.00385765,9.9202,9.9134,45.80730786]
[1672619293974,13.00385765,9.9202,9.9136,30.0]
[1672619294189,13.00385765,9.9202,9.9135,69.48576393]
[1672619294389,13.00385765,9.9202,9.9134,30.0]
[1672619294390,13.00385765,9.9202,9.9137,69.48576393]
[1672619294589,13.00385765,9.9202,9.9137,53.67845607]
[1672619294800,13.00385765,9.9202,9.9138,53.67845607]
[1672619298062,13.00385765,9.9202,9.9139,11.62]
[1672619298391,30.0,9.9201,9.9139,65.29845607]
[1672619299114,13.00154778,9.92,9.9139,65.29845607]
[1672619299528,13.00154778,9.92,9.914,30.0]
[1672619299738,13.00154778,9.92,9.9141,10.66]
[1672619299962,13.00154778,9.92,9.9142,30.0]
[1672619300191,23.0364,9.9205,9.9143,12.46]
[1672619300487,23.0364,9.9205,9.9144,30.0]
[1672619300703,23.0364,9.9205,9.9145,15.77]
[1672619300909,23.0364,9.9205,9.9146,30.0]
[1672619301106,13.00616743,9.9204,9.9146,30.0]
[1672619301315,13.00616743,9.9204,9.9146,166.9882953]
[1672619301524,13.00616743,9.9204,9.9148,30.0]
[1672619301961,13.00616743,9.9204,9.9149,69.48576393]
[1672619302194,13.00616743,9.9204,9.915,30.0]
[1672619302486,13.00616743,9.9204,9.915,83.67845607]
[1672619302690,13.00616743,9.9204,9.9152,30.0]
[1672619303098,13.00616743,9.9204,9.9154,30.0]
[1672619304049,13.00616743,9.9204,9.9149,15.80730786]
[1672619304050,13.00616743,9.9204,9.9103,74.66177315]
[1672619304259,30.0,9.9203,9.9103,74.66177315]
[1672619304475,30.0,9.9203,9.9128,30.0]
[1672619305006,13.00616743,9.9204,9.9128,30.0]
[1672619305202,13.00385765,9.9202,9.9128,30.0]
[1672619305740,30.0,9.9201,9.9128,30.0]
[1672619306566,13.00385765,9.9202,9.9128,30.0]
[1672619315180,13.00385765,9.9202,9.9127,53.67845607]
[1672619315391,30.0,9.9201,9.9132,15.80730786]
[1672619316169,13.00154778,9.92,9.9132,15.80730786]
[1672619317077,23.4725,9.9204,9.9132,15.80730786]
[1672619320132,13.00501255,9.9203,9.9132,15.80730786]
[1672619322140,13.00501255,9.9203,9.913,15.80730786]
[1672619324114,13.00501255,9.9203,9.9128,30.0]
[1672619325177,13.00501255,9.9203,9.9146,15.80730786]
[1672619328220,13.00501255,9.9203,9.9128,30.0]
[1672619328644,30.0,9.9202,9.9129,15.80730786]
[1672619328854,30.0,9.9202,9.913,30.0]
[1672619329073,43.00385765,9.9202,9.913,30.0]
[1672619329601,13.00385765,9.9202,9.913,30.0]
[1672619332120,13.00385765,9.9202,9.9147,30.0]
[1672619332758,13.00385765,9.9202,9.9149,30.0]
[1672619333165,13.00385765,9.9202,9.9151,30.0]
[1672619333597,13.00385765,9.9202,9.9151,97.50253137]
[1672619338963,13.00385765,9.9202,9.9151,67.50253137]
[1672619341264,13.00385765,9.9202,9.9127,72.30845607]
[1672619341454,30.0,9.9201,9.9127,72.30845607]
[1672619341671,13.00385765,9.9202,9.9128,53.67845607]
[1672619341881,13.00385765,9.9202,9.913,30.0]
[1672619342105,23.5099,9.9201,9.9131,13.38]
[1672619342307,13.00154778,9.92,9.9132,30.0]
[1672619342520,13.00154778,9.92,9.9133,13.54]
[1672619342733,23.5099,9.9199,9.9133,13.54]
[1672619342959,23.5099,9.9199,9.9134,30.0]
[1672619343165,23.5099,9.9199,9.9135,13.79]
[1672619343481,23.5099,9.9198,9.9135,67.46845607]
[1672619343694,23.5099,9.9198,9.9136,53.67845607]
[1672619343900,23.5099,9.9198,9.9137,15.47]
[1672619344098,23.5099,9.9198,9.9138,30.0]
[1672619344304,23.5099,9.9198,9.9139,15.99]
[1672619344731,23.5099,9.9198,9.9136,53.67845607]
[1672619344941,23.5099,9.9198,9.9137,15.86]
[1672619346098,12.99808279,9.9197,9.9137,15.86]
[1672619347154,12.99808279,9.9197,9.9138,30.0]
[1672619348522,12.99808279,9.9197,9.9137,15.86]
[1672619352102,30.0,9.9196,9.9137,15.86]
[1672619353254,12.99577268,9.9195,9.9137,15.86]
[1672619362379,12.99577268,9.9195,9.9096,74.66177315]
[1672619362592,302.2,9.9193,9.9028,74.66177315]
[1672619362804,302.2,9.9191,9.9028,74.66177315]
[1672619363015,302.2,9.9189,9.9044,15.80730786]
[1672619363224,302.2,9.9187,9.9044,15.80730786]
[1672619363544,302.2,9.9185,9.9044,15.80730786]
[1672619363757,30.0,9.9183,9.9044,15.80730786]
[1672619363975,30.0,9.9181,9.9044,15.80730786]
[1672619364181,95.74,9.918,9.9044,15.80730786]
[1672619364494,30.0,9.9179,9.9044,15.80730786]
[1672619364706,30.0,9.9177,9.9044,15.80730786]
[1672619364908,95.74,9.9176,9.9044,15.80730786]
[1672619365120,30.0,9.9175,9.9044,15.80730786]
[1672619365345,30.0,9.9173,9.9044,15.80730786]
[1672619365655,30.0,9.9171,9.9044,15.80730786]
[1672619365849,30.0,9.9169,9.9044,15.80730786]
[1672619366063,95.75,9.9168,9.9044,15.80730786]
[1672619366271,30.0,9.9167,9.9044,15.80730786]
[1672619366483,75.75,9.9166,9.9071,15.80730786]
[1672619366693,30.0,9.9165,9.9082,15.80730786]
[1672619366908,75.75,9.9164,9.9082,15.80730786]
[1672619367109,237.0186,9.9164,9.9082,15.80730786]
[1672619367325,30.0,9.9163,9.9082,15.80730786]
[1672619367546,30.0,9.9161,9.9082,15.80730786]
[1672619367778,75.75,9.916,9.9082,15.80730786]
[1672619368076,30.0,9.9159,9.9082,15.80730786]
[1672619368274,75.75,9.9158,9.9054,30.0]
[1672619368479,30.0,9.9157,9.9054,30.0]
[1672619368692,30.0,9.9155,9.9074,15.80730786]
[1672619368901,30.0,9.9153,9.9074,15.80730786]
[1672619369107,75.76,9.9152,9.9074,15.80730786]
[1672619369327,30.0,9.9151,9.9074,15.80730786]
[1672619369533,75.76,9.915,9.9074,15.80730786]
[1672619369859,75.76,9.915,9.9054,30.0]
[1672619369860,30.0,9.9149,9.9054,30.0]
[1672619370177,30.0,9.9147,9.9068,15.80730786]
[1672619370385,75.76,9.9146,9.9068,15.80730786]
[1672619370575,30.0,9.9145,9.9068,15.80730786]
[1672619370790,75.76,9.9144,9.9068,15.80730786]
[1672619370999,30.0,9.9143,9.9068,15.80730786]
[1672619371212,30.0,9.9141,9.9053,62.02816435]
[1672619371421,75.77,9.914,9.9053,62.02816435]
[1672619371642,30.0,9.9139,9.906,15.80730786]
[1672619371848,30.0,9.9137,9.906,15.80730786]
[1672619372160,30.0,9.9135,9.906,15.80730786]
[1672619372375,75.77,9.9134,9.9053,62.02816435]
[1672619372705,30.0,9.9133,9.9053,62.02816435]
[1672619373018,30.0,9.9131,9.901,30.0]
[1672619373241,75.77,9.913,9.901,30.0]
[1672619373448,30.0,9.9129,9.901,30.0]
[1672619373633,75.78,9.9128,9.901,30.0]
[1672619373844,30.0,9.9127,9.901,30.0]
[1672619374054,30.0,9.9125,9.901,30.0]
[1672619374366,30.0,9.9123,9.901,30.0]
[1672619374696,30.0,9.9121,9.901,30.0]
[1672619374892,30.0,9.9119,9.901,30.0]
[1672619376266,75.78,9.912,9.9042,62.02816435]
[1672619376480,75.78,9.9127,9.9042,62.02816435]
[1672619376683,180.15374915,9.9288,9.9043,30.0]
[1672619376684,75.76,9.9144,9.9043,30.0]
[1672619376896,155.89489952,9.912,9.9043,30.0]
[1672619377441,30.0,9.9119,9.9081,9.8447662]
[1672619377838,185.89489952,9.9119,9.9081,9.8447662]
[1672619378058,12.90676262,9.9118,9.9081,9.8447662]
[1672619378269,30.0,9.9117,9.9081,9.8447662]
[1672619378689,30.0,9.9116,9.9081,9.8447662]
[1672619379101,185.89489952,9.9116,9.9081,9.8447662]
[1672619379735,30.0,9.9116,9.9081,9.8447662]
[1672619380285,12.90676262,9.9118,9.9081,9.8447662]
[1672619381320,30.0,9.9127,9.9081,9.8447662]
[1672619382368,12.91601686,9.9126,9.9081,9.8447662]
[1672619383109,168.81091638,9.9126,9.9081,9.8447662]
[1672619383527,30.0,9.9125,9.9081,9.8447662]
[1672619383725,12.91601686,9.9126,9.9081,9.8447662]
[1672619383932,30.0,9.9124,9.9081,9.8447662]
[1672619384266,155.89489952,9.9124,9.9081,9.8447662]
[1672619384486,30.0,9.9123,9.9081,9.8447662]
[1672619385088,185.89489952,9.9123,9.9081,9.8447662]
[1672619385415,30.0,9.9121,9.9081,9.8447662]
[1672619386038,12.90907632,9.912,9.9081,9.8447662]
[1672619388806,168.80397584,9.912,9.9081,9.8447662]
[1672619388995,30.0,9.9119,9.9081,9.8447662]
[1672619389619,185.89489952,9.9119,9.9081,9.8447662]
[1672619390056,12.90676262,9.9118,9.9081,9.8447662]
[1672619390777,30.0,9.9117,9.9081,9.8447662]
[1672619392817,12.90676262,9.9118,9.9081,9.8447662]
[1672619394894,30.0,9.9117,9.9081,9.8447662]
[1672619395612,185.89489952,9.9117,9.9081,9.8447662]
[1672619396050,12.90444883,9.9116,9.9081,9.8447662]